fUSD/lending_fUSD_20250822
["ID","MTS","AMOUNT","RATE_DAILY","PERIOD"]
[380619499,1755821437384,-633.5,0.00016438,2]
[380619500,1755821437394,-400.0,0.00016438,2]
[380619501,1755821437403,-235.72556244,0.00016438,2]
[380619502,1755821437413,-476.88,0.00016438,2]
[380619503,1755821437422,-400.0,0.00016438,2]
[380619504,1755821437432,-400.0,0.00016438,2]
[380619505,1755821437441,-400.0,0.00016438,2]
[380619506,1755821437451,-537.97,0.00016438,2]
[380619507,1755821437460,-764.63,0.00016438,2]
[380619508,1755821437470,-580.41,0.00016438,2]
[380619509,1755821437482,-400.0,0.00016438,2]
[380619510,1755821437491,-400.0,0.00016438,2]
[380619511,1755821437501,-485.07,0.00016438,2]
[380619512,1755821437511,-400.0,0.00016438,2]
[380619513,1755821437521,-455.75,0.00016438,2]
[380619514,1755821437760,-1353.57,0.00016438,2]
[380619515,1755821437798,-813.73,0.00016438,2]
[380619516,1755821437808,-707.46,0.00016438,2]
[380619517,1755821437817,-400.0,0.00016438,2]
[380619518,1755821437827,-400.0,0.00016438,2]
[380619519,1755821437836,-558.35,0.00016438,2]
[380619520,1755821437846,-664.92,0.00016438,2]
[380619521,1755821437856,-400.0,0.00016438,2]
[380619522,1755821437865,-400.0,0.00016438,2]
[380619523,1755821437875,-438.0,0.00016438,2]
[380619524,1755821437885,-400.0,0.00016438,2]
[380619525,1755821437894,-608.7,0.00016438,2]
[380619526,1755821437903,-400.0,0.00016438,2]
[380619527,1755821437913,-400.0,0.00016438,2]
[380619528,1755821437923,-1182.22,0.00016438,2]
[380619529,1755821437932,-400.0,0.00016438,2]
[380619530,1755821437942,-786.62,0.00016438,2]
[380619531,1755821437952,-400.0,0.00016438,2]
[380619532,1755821437961,-400.0,0.00016438,2]
[380619533,1755821437971,-459.66,0.00016438,2]
[380619534,1755821437980,-151.727616,0.00016438,2]
[380619535,1755821437990,-789.56,0.00016438,2]
[380619536,1755821438000,-618.9,0.00016438,2]
[380619537,1755821438009,-400.0,0.00016438,2]
[380619538,1755821438019,-400.0,0.00016438,2]
[380619539,1755821438030,-400.0,0.00016438,2]
[380619540,1755821438040,-415.11,0.00016438,2]
[380619541,1755821438050,-482.63,0.00016438,2]
[380619542,1755821438060,-662.26,0.00016438,2]
[380619543,1755821438069,-400.0,0.00016438,2]
[380619544,1755821438079,-478.13,0.00016438,2]
[380619545,1755821438088,-400.0,0.00016438,2]
[380619546,1755821438098,-400.0,0.00016438,2]
[380619547,1755821438107,-400.0,0.00016438,2]
[380619548,1755821438118,-400.0,0.00016438,2]
[380619549,1755821438127,-748.6,0.00016438,2]
[380619550,1755821438137,-400.0,0.00016438,2]
[380619551,1755821438147,-609.03,0.00016438,2]
[380619552,1755821438157,-553.64,0.00016438,2]
[380619553,1755821438167,-405.94,0.00016438,2]
[380619554,1755821438180,-662.38,0.00016438,2]
[380619555,1755821438191,-400.0,0.00016438,2]
[380619556,1755821438202,-400.0,0.00016438,2]
[380619557,1755821438213,-502.79,0.00016438,2]
[380619558,1755821438223,-603.4,0.00016438,2]
[380619559,1755821438233,-504.91,0.00016438,2]
[380619560,1755821438243,-884.28,0.00016438,2]
[380619561,1755821438255,-400.0,0.00016438,2]
[380619562,1755821438265,-120.65593316,0.00016438,2]
[380619563,1755821438525,-279.34406684,0.00016438,2]
[380619565,1755821438543,-178.56433601,0.00016438,2]
[380619567,1755821438556,-432.33566399,0.00016438,2]
[380619569,1755821438567,-91.05018157,0.00016438,2]
[380619571,1755821438591,-308.94981843,0.00016438,2]
[380619573,1755821438601,-507.90255643,0.00016438,2]
[380619575,1755821438611,-681.83,0.00016438,2]
[380619577,1755821438620,-835.45,0.00016438,2]
[380619579,1755821438630,-400.0,0.00016438,2]
[380619581,1755821438640,-167.20072005,0.00016438,2]
[380619583,1755821438652,-871.36927995,0.00016438,2]
[380619584,1755821438661,-218.619381,0.00016438,2]
[380619585,1755821438671,-520.92,0.00016438,2]
[380619586,1755821438681,-400.0,0.00016438,2]
[380619587,1755821438691,-1196.55,0.00016438,2]
[380619588,1755821438702,-400.0,0.00016438,2]
[380619589,1755821438719,-400.0,0.00016438,2]
[380619590,1755821438729,-456.02,0.00016438,2]
[380619591,1755821438739,-910.18,0.00016438,2]
[380619592,1755821438748,-400.0,0.00016438,2]
[380619593,1755821438758,-400.0,0.00016438,2]
[380619594,1755821438767,-432.85,0.00016438,2]
[380619595,1755821438778,-400.0,0.00016438,2]
[380619596,1755821438787,-400.0,0.00016438,2]
[380619597,1755821438797,-644.85,0.00016438,2]
[380619598,1755821438806,-821.17,0.00016438,2]
[380619599,1755821438816,-400.0,0.00016438,2]
[380619600,1755821438826,-400.0,0.00016438,2]
[380619601,1755821438836,-400.0,0.00016438,2]
[380619602,1755821438846,-1224.95,0.00016438,2]
[380619603,1755821438855,-400.0,0.00016438,2]
[380619604,1755821438865,-575.92,0.00016438,2]
[380619605,1755821438874,-643.45,0.00016438,2]
[380619606,1755821438884,-456.42,0.00016438,2]
[380619607,1755821438893,-400.0,0.00016438,2]
[380619608,1755821438902,-400.0,0.00016438,2]
[380619609,1755821438912,-400.0,0.00016438,2]
[380619610,1755821438921,-400.0,0.00016438,2]
[380619611,1755821438931,-400.0,0.00016438,2]
[380619612,1755821438941,-400.0,0.00016438,2]
[380619613,1755821438950,-645.05,0.00016438,2]
[380619614,1755821438960,-400.0,0.00016438,2]
[380619615,1755821438969,-290.994899,0.00016438,2]
[380619616,1755821438979,-1079.48,0.00016438,2]
[380619617,1755821438989,-912.43,0.00016438,2]
[380619618,1755821438999,-429.87482803,0.00016438,2]
[380619619,1755821439010,-154.99061981,0.00016438,2]
[380619620,1755821439028,-247.84938019,0.00016438,2]
[380619621,1755821439037,-447.83,0.00016438,2]
[380619622,1755821439048,-504.95,0.00016438,2]
[380619623,1755821439060,-400.0,0.00016438,2]
[380619624,1755821439071,-733.56,0.00016438,2]
[380619625,1755821439082,-558.2,0.00016438,2]
[380619626,1755821439094,-537.22,0.00016438,2]
[380619627,1755821439105,-469.38,0.00016438,2]
[380619628,1755821439114,-444.51,0.00016438,2]
[380619629,1755821439125,-400.0,0.00016438,2]
[380619630,1755821439134,-400.0,0.00016438,2]
[380619631,1755821439144,-400.0,0.00016438,2]
[380619632,1755821439153,-550.56,0.00016438,2]
[380619633,1755821439163,-400.0,0.00016438,2]
[380619634,1755821439177,-577.16,0.00016438,2]
[380619635,1755821439187,-400.0,0.00016438,2]
[380619636,1755821439198,-596.93,0.00016438,2]
[380619637,1755821439208,-830.18,0.00016438,2]
[380619638,1755821439219,-593.19,0.00016438,2]
[380619639,1755821439229,-631.24,0.00016438,2]
[380619640,1755821439240,-400.0,0.00016438,2]
[380619641,1755821439252,-400.0,0.00016438,2]
[380619642,1755821439261,-439.8,0.00016438,2]
[380619643,1755821439271,-400.0,0.00016438,2]
[380619644,1755821439282,-461.67,0.00016438,2]
[380619645,1755821439292,-566.61,0.00016438,2]
[380619646,1755821439302,-400.0,0.00016438,2]
[380619647,1755821439312,-666.38,0.00016438,2]
[380619648,1755821439322,-653.06,0.00016438,2]
[380619649,1755821439332,-400.0,0.00016438,2]
[380619650,1755821439341,-400.0,0.00016438,2]
[380619651,1755821439351,-512.27930663,0.00016438,2]
[380619652,1755821439361,-609.62,0.00016438,2]
[380619653,1755821439371,-400.0,0.00016438,2]
[380619654,1755821439380,-805.93,0.00016438,2]
[380619655,1755821439390,-400.0,0.00016438,2]
[380619656,1755821439400,-400.0,0.00016438,2]
[380619657,1755821439409,-576.08,0.00016438,2]
[380619658,1755821439419,-829.23,0.00016438,2]
[380619659,1755821439428,-747.46,0.00016438,2]
[380619660,1755821439437,-567.24,0.00016438,2]
[380619661,1755821439446,-400.0,0.00016438,2]
[380619662,1755821439455,-470.43,0.00016438,2]
[380619663,1755821439465,-400.0,0.00016438,2]
[380619664,1755821439474,-1123.78,0.00016438,2]
[380619665,1755821439484,-400.0,0.00016438,2]
[380619666,1755821439493,-1141.41,0.00016438,2]
[380619667,1755821439503,-400.0,0.00016438,2]
[380619668,1755821439512,-475.61,0.00016438,2]
[380619669,1755821439522,-400.0,0.00016438,2]
[380619670,1755821439532,-400.0,0.00016438,2]
[380619671,1755821439542,-763.65,0.00016438,2]
[380619672,1755821439551,-402.27,0.00016438,2]
[380619673,1755821439560,-400.0,0.00016438,2]
[380619674,1755821439570,-400.0,0.00016438,2]
[380619675,1755821439579,-400.0,0.00016438,2]
[380619676,1755821439588,-1334.54,0.00016438,2]
[380619677,1755821439598,-480.36,0.00016438,2]
[380619678,1755821439607,-400.0,0.00016438,2]
[380619679,1755821439617,-400.0,0.00016438,2]
[380619680,1755821439626,-400.0,0.00016438,2]
[380619681,1755821439635,-400.0,0.00016438,2]
[380619682,1755821439645,-466.04,0.00016438,2]
[380619683,1755821439654,-400.0,0.00016438,2]
[380619684,1755821439664,-942.31,0.00016438,2]
[380619685,1755821439673,-400.0,0.00016438,2]
[380619686,1755821439683,-642.9,0.00016438,2]
[380619687,1755821439694,-400.0,0.00016438,2]
[380619688,1755821439703,-723.93,0.00016438,2]
[380619689,1755821439714,-400.0,0.00016438,2]
[380619690,1755821439725,-400.0,0.00016438,2]
[380619691,1755821439734,-490.9,0.00016438,2]
[380619692,1755821439744,-400.0,0.00016438,2]
[380619693,1755821439753,-400.0,0.00016438,2]
[380619694,1755821439763,-578.88,0.00016438,2]
[380619695,1755821439772,-400.0,0.00016438,2]
[380619696,1755821439782,-515.18,0.00016438,2]
[380619697,1755821439791,-400.0,0.00016438,2]
[380619698,1755821439801,-454.36,0.00016438,2]
[380619699,1755821439810,-490.99,0.00016438,2]
[380619700,1755821439820,-456.20894646,0.00016438,2]
[380619701,1755821439829,-465.48,0.00016438,2]
[380619702,1755821439839,-468.57,0.00016438,2]
[380619703,1755821439849,-400.0,0.00016438,2]
[380619705,1755821439858,-400.0,0.00016438,2]
[380619706,1755821439868,-400.0,0.00016438,2]
[380619707,1755821439878,-758.39,0.00016438,2]
[380619708,1755821439887,-586.03,0.00016438,2]
[380619709,1755821439897,-516.92,0.00016438,2]
[380619710,1755821439907,-648.08,0.00016438,2]
[380619711,1755821439916,-400.0,0.00016438,2]
[380619712,1755821439925,-400.0,0.00016438,2]
[380619713,1755821439935,-400.0,0.00016438,2]
[380619714,1755821439944,-400.0,0.00016438,2]
[380619715,1755821439954,-400.0,0.00016438,2]
[380619716,1755821439963,-400.0,0.00016438,2]
[380619717,1755821439972,-725.47,0.00016438,2]
[380619718,1755821439982,-400.0,0.00016438,2]
[380619719,1755821439991,-1050.64,0.00016438,2]
[380619720,1755821440001,-400.0,0.00016438,2]
[380619721,1755821440011,-765.12,0.00016438,2]
[380619722,1755821440022,-823.35,0.00016438,2]
[380619723,1755821440032,-400.0,0.00016438,2]
[380619724,1755821440041,-656.93,0.00016438,2]
[380619725,1755821440051,-533.77,0.00016438,2]
[380619726,1755821440060,-400.0,0.00016438,2]
[380619727,1755821440069,-606.92,0.00016438,2]
[380619728,1755821440078,-400.0,0.00016438,2]
[380619729,1755821440088,-466.00540609,0.00016438,2]
[380619730,1755821440097,-400.0,0.00016438,2]
[380619731,1755821440107,-400.0,0.00016438,2]
[380619732,1755821440116,-688.07,0.00016438,2]
[380619733,1755821440126,-400.0,0.00016438,2]
[380619734,1755821440136,-400.0,0.00016438,2]
[380619735,1755821440146,-688.7,0.00016438,2]
[380619736,1755821440155,-809.03,0.00016438,2]
[380619737,1755821440164,-416.21,0.00016438,2]
[380619738,1755821440178,-400.0,0.00016438,2]
[380619739,1755821440187,-418.83,0.00016438,2]
[380619740,1755821440197,-628.21,0.00016438,2]
[380619741,1755821440207,-400.0,0.00016438,2]
[380619742,1755821440218,-400.0,0.00016438,2]
[380619743,1755821440227,-736.13,0.00016438,2]
[380619744,1755821440236,-407.02,0.00016438,2]
[380619745,1755821440246,-400.0,0.00016438,2]
[380619746,1755821440256,-565.78,0.00016438,2]
[380619747,1755821440267,-674.39,0.00016438,2]
[380619748,1755821440276,-776.19,0.00016438,2]
[380619749,1755821440287,-400.0,0.00016438,2]
[380619750,1755821440296,-528.17,0.00016438,2]
[380619751,1755821440306,-639.46,0.00016438,2]
[380619752,1755821440315,-400.0,0.00016438,2]
[380619753,1755821440325,-574.22,0.00016438,2]
[380619754,1755821440335,-400.0,0.00016438,2]
[380619755,1755821440345,-445.56,0.00016438,2]
[380619756,1755821440355,-400.0,0.00016438,2]
[380619757,1755821440365,-400.0,0.00016438,2]
[380619758,1755821440374,-400.0,0.00016438,2]
[380619759,1755821440384,-400.0,0.00016438,2]
[380619760,1755821440394,-400.0,0.00016438,2]
[380619761,1755821440404,-515.26,0.00016438,2]
[380619763,1755821440414,-400.0,0.00016438,2]
[380619764,1755821440526,-491.06,0.00016438,2]
[380619765,1755821440537,-707.79,0.00016438,2]
[380619766,1755821440547,-400.0,0.00016438,2]
[380619767,1755821440556,-499.34,0.00016438,2]
[380619768,1755821440566,-1198.74,0.00016438,2]
[380619769,1755821440575,-485.14,0.00016438,2]
[380619770,1755821440585,-400.0,0.00016438,2]
[380619771,1755821440594,-400.0,0.00016438,2]
[380619772,1755821440604,-400.0,0.00016438,2]
[380619773,1755821440613,-566.95,0.00016438,2]
[380619774,1755821440622,-600.5,0.00016438,2]
[380619775,1755821440631,-400.0,0.00016438,2]
[380619776,1755821440641,-400.0,0.00016438,2]
[380619777,1755821440650,-514.59,0.00016438,2]
[380619778,1755821440659,-400.0,0.00016438,2]
[380619779,1755821440670,-400.0,0.00016438,2]
[380619780,1755821440680,-1308.45,0.00016438,2]
[380619781,1755821440689,-683.85,0.00016438,2]
[380619782,1755821440698,-400.0,0.00016438,2]
[380619783,1755821440708,-160.0,0.00016438,2]
[380619784,1755821440717,-502.13,0.00016438,2]
[380619785,1755821440727,-400.0,0.00016438,2]
[380619786,1755821440736,-647.3,0.00016438,2]
[380619787,1755821440745,-400.0,0.00016438,2]
[380619788,1755821440754,-892.1,0.00016438,2]
[380619789,1755821440763,-400.0,0.00016438,2]
[380619790,1755821440773,-1242.86,0.00016438,2]
[380619791,1755821440782,-400.0,0.00016438,2]
[380619792,1755821440791,-776.23,0.00016438,2]
[380619793,1755821440801,-400.0,0.00016438,2]
[380619794,1755821440810,-865.51,0.00016438,2]
[380619795,1755821440820,-400.0,0.00016438,2]
[380619796,1755821440831,-773.37,0.00016438,2]
[380619797,1755821440840,-400.0,0.00016438,2]
[380619798,1755821440850,-667.76,0.00016438,2]
[380619799,1755821440860,-682.68,0.00016438,2]
[380619800,1755821440870,-1078.32,0.00016438,2]
[380619801,1755821440879,-681.97,0.00016438,2]
[380619802,1755821440889,-681.81,0.00016438,2]
[380619803,1755821440899,-607.5,0.00016438,2]
[380619804,1755821440910,-400.0,0.00016438,2]
[380619805,1755821440921,-589.22,0.00016438,2]
[380619806,1755821440931,-400.0,0.00016438,2]
[380619807,1755821440940,-400.0,0.00016438,2]
[380619808,1755821440949,-637.32,0.00016438,2]
[380619809,1755821440958,-400.0,0.00016438,2]
[380619810,1755821440967,-400.0,0.00016438,2]
[380619811,1755821440977,-400.0,0.00016438,2]
[380619812,1755821440986,-400.0,0.00016438,2]
[380619813,1755821440995,-400.0,0.00016438,2]
[380619814,1755821441005,-656.89,0.00016438,2]
[380619815,1755821441014,-400.0,0.00016438,2]
[380619816,1755821441024,-401.8,0.00016438,2]
[380619817,1755821441034,-400.0,0.00016438,2]
[380619818,1755821441044,-400.0,0.00016438,2]
[380619819,1755821441054,-1000.0,0.00016438,2]
[380619820,1755821441063,-400.0,0.00016438,2]
[380619821,1755821441073,-400.0,0.00016438,2]
[380619822,1755821441082,-790.07,0.00016438,2]
[380619823,1755821441091,-400.0,0.00016438,2]
[380619824,1755821441101,-445.28,0.00016438,2]
[380619825,1755821441110,-400.0,0.00016438,2]
[380619826,1755821441120,-431.68,0.00016438,2]
[380619827,1755821441130,-526.5,0.00016438,2]
[380619828,1755821441139,-400.0,0.00016438,2]
[380619829,1755821441149,-482.24,0.00016438,2]
[380619830,1755821441158,-400.0,0.00016438,2]
[380619831,1755821441167,-400.0,0.00016438,2]
[380619832,1755821441180,-400.0,0.00016438,2]
[380619833,1755821441190,-713.27,0.00016438,2]
[380619834,1755821441199,-591.71,0.00016438,2]
[380619835,1755821441208,-400.0,0.00016438,2]
[380619836,1755821441218,-400.0,0.00016438,2]
[380619837,1755821441228,-529.37,0.00016438,2]
[380619838,1755821441239,-400.0,0.00016438,2]
[380619839,1755821441250,-853.57,0.00016438,2]
[380619840,1755821441259,-579.62,0.00016438,2]
[380619841,1755821441269,-400.0,0.00016438,2]
[380619842,1755821441278,-427.83,0.00016438,2]
[380619843,1755821441288,-416.1,0.00016438,2]
[380619844,1755821441298,-400.0,0.00016438,2]
[380619845,1755821441308,-400.0,0.00016438,2]
[380619846,1755821441318,-400.0,0.00016438,2]
[380619847,1755821441328,-400.0,0.00016438,2]
[380619848,1755821441339,-400.0,0.00016438,2]
[380619849,1755821441348,-429.43,0.00016438,2]
[380619850,1755821441357,-400.0,0.00016438,2]
[380619851,1755821441367,-684.38,0.00016438,2]
[380619852,1755821441377,-530.83,0.00016438,2]
[380619853,1755821441387,-400.0,0.00016438,2]
[380619854,1755821441396,-400.0,0.00016438,2]
[380619855,1755821441405,-400.0,0.00016438,2]
[380619856,1755821441416,-400.0,0.00016438,2]
[380619857,1755821441426,-791.94,0.00016438,2]
[380619858,1755821441435,-400.0,0.00016438,2]
[380619859,1755821441446,-400.0,0.00016438,2]
[380619860,1755821441457,-581.66,0.00016438,2]
[380619861,1755821441467,-433.87,0.00016438,2]
[380619862,1755821441478,-708.22,0.00016438,2]
[380619863,1755821441488,-400.0,0.00016438,2]
[380619864,1755821441499,-1447.25,0.00016438,2]
[380619865,1755821441511,-400.0,0.00016438,2]
[380619866,1755821441522,-400.0,0.00016438,2]
[380619867,1755821441532,-400.0,0.00016438,2]
[380619868,1755821441541,-826.14,0.00016438,2]
[380619869,1755821441550,-400.0,0.00016438,2]
[380619870,1755821441559,-742.42,0.00016438,2]
[380619871,1755821441568,-400.0,0.00016438,2]
[380619872,1755821441578,-400.0,0.00016438,2]
[380619873,1755821441587,-454.51,0.00016438,2]
[380619874,1755821441597,-426.48,0.00016438,2]
[380619875,1755821441606,-478.24,0.00016438,2]
[380619876,1755821441616,-505.74,0.00016438,2]
[380619877,1755821441625,-1295.56,0.00016438,2]
[380619878,1755821441634,-419.76,0.00016438,2]
[380619879,1755821441643,-793.64,0.00016438,2]
[380619880,1755821441652,-933.3,0.00016438,2]
[380619881,1755821441661,-400.0,0.00016438,2]
[380619882,1755821441670,-621.96,0.00016438,2]
[380619883,1755821441678,-400.0,0.00016438,2]
[380619884,1755821441688,-400.0,0.00016438,2]
[380619885,1755821441697,-400.0,0.00016438,2]
[380619886,1755821441706,-418.97,0.00016438,2]
[380619887,1755821441715,-1050.94,0.00016438,2]
[380619888,1755821441723,-500.0,0.00016438,2]
[380619889,1755821441733,-4572.12,0.00016438,2]
[380619890,1755821441741,-454.78,0.00016438,2]
[380619891,1755821441752,-400.0,0.00016438,2]
[380619892,1755821441762,-400.0,0.00016438,2]
[380619893,1755821441771,-400.0,0.00016438,2]
[380619894,1755821441780,-733.16,0.00016438,2]
[380619895,1755821441791,-400.0,0.00016438,2]
[380619896,1755821441800,-1117.75,0.00016438,2]
[380619897,1755821441809,-400.0,0.00016438,2]
[380619898,1755821441819,-400.0,0.00016438,2]
[380619899,1755821441828,-400.0,0.00016438,2]
[380619900,1755821441837,-400.0,0.00016438,2]
[380619901,1755821441847,-486.98,0.00016438,2]
[380619902,1755821441859,-400.0,0.00016438,2]
[380619903,1755821441870,-497.47,0.00016438,2]
[380619904,1755821441880,-400.0,0.00016438,2]
[380619905,1755821441889,-965.94,0.00016438,2]
[380619906,1755821441898,-400.0,0.00016438,2]
[380619907,1755821441909,-400.0,0.00016438,2]
[380619908,1755821441919,-692.97,0.00016438,2]
[380619909,1755821441928,-1967.27,0.00016438,2]
[380619910,1755821441938,-400.0,0.00016438,2]
[380619911,1755821441948,-400.0,0.00016438,2]
[380619912,1755821441958,-400.0,0.00016438,2]
[380619913,1755821441967,-400.0,0.00016438,2]
[380619914,1755821441978,-400.0,0.00016438,2]
[380619915,1755821441991,-646.84,0.00016438,2]
[380619916,1755821442001,-400.0,0.00016438,2]
[380619917,1755821442011,-407.37,0.00016438,2]
[380619918,1755821442021,-400.0,0.00016438,2]
[380619919,1755821442032,-400.0,0.00016438,2]
[380619920,1755821442042,-1175.94,0.00016438,2]
[380619921,1755821442051,-400.0,0.00016438,2]
[380619922,1755821442061,-400.0,0.00016438,2]
[380619923,1755821442071,-400.0,0.00016438,2]
[380619924,1755821442080,-400.0,0.00016438,2]
[380619925,1755821442090,-505.54,0.00016438,2]
[380619926,1755821442099,-604.55,0.00016438,2]
[380619927,1755821442109,-1365.25,0.00016438,2]
[380619928,1755821442118,-996.95,0.00016438,2]
[380619929,1755821442128,-400.0,0.00016438,2]
[380619930,1755821442139,-400.0,0.00016438,2]
[380619931,1755821442149,-400.0,0.00016438,2]
[380619932,1755821442158,-400.0,0.00016438,2]
[380619933,1755821442169,-1197.88,0.00016438,2]
[380619934,1755821442182,-400.0,0.00016438,2]
[380619935,1755821442193,-400.0,0.00016438,2]
[380619936,1755821442202,-400.0,0.00016438,2]
[380619937,1755821442212,-888.8,0.00016438,2]
[380619938,1755821442223,-471.26,0.00016438,2]
[380619939,1755821442233,-674.3,0.00016438,2]
[380619940,1755821442243,-494.25,0.00016438,2]
[380619941,1755821442254,-424.02,0.00016438,2]
[380619942,1755821442264,-1451.46,0.00016438,2]
[380619943,1755821442273,-400.0,0.00016438,2]
[380619944,1755821442283,-400.0,0.00016438,2]
[380619945,1755821442294,-514.71,0.00016438,2]
[380619946,1755821442304,-400.0,0.00016438,2]
[380619947,1755821442314,-936.78,0.00016438,2]
[380619948,1755821442324,-707.12,0.00016438,2]
[380619949,1755821442333,-400.0,0.00016438,2]
[380619950,1755821442343,-175.82758549,0.00016438,2]
[380619951,1755821442353,-653.8,0.00016438,2]
[380619952,1755821442363,-400.0,0.00016438,2]
[380619953,1755821442373,-442.65,0.00016438,2]
[380619954,1755821442383,-811.43,0.00016438,2]
[380619955,1755821442393,-3912.07,0.00016438,2]
[380619956,1755821442403,-408.59,0.00016438,2]
[380619957,1755821442620,-400.0,0.00016438,2]
[380619958,1755821442630,-400.0,0.00016438,2]
[380619959,1755821442640,-400.0,0.00016438,2]
[380619960,1755821442650,-620.08,0.00016438,2]
[380619961,1755821442660,-1418.27,0.00016438,2]
[380619962,1755821442669,-539.16,0.00016438,2]
[380619963,1755821442678,-854.33,0.00016438,2]
[380619964,1755821442688,-768.32,0.00016438,2]
[380619965,1755821442697,-649.85,0.00016438,2]
[380619966,1755821442707,-400.0,0.00016438,2]
[380619967,1755821442716,-400.0,0.00016438,2]
[380619968,1755821442726,-2066.9,0.00016438,2]
[380619969,1755821442736,-400.0,0.00016438,2]
[380619970,1755821442746,-629.13,0.00016438,2]
[380619971,1755821442755,-400.0,0.00016438,2]
[380619972,1755821442765,-400.0,0.00016438,2]
[380619973,1755821442775,-916.05,0.00016438,2]
[380619974,1755821442786,-519.51,0.00016438,2]
[380619975,1755821442795,-482.96,0.00016438,2]
[380619976,1755821442805,-441.72,0.00016438,2]
[380619977,1755821442815,-400.0,0.00016438,2]
[380619978,1755821442825,-527.39,0.00016438,2]
[380619979,1755821442835,-336.49640073,0.00016438,2]
[380619980,1755821442844,-628.5,0.00016438,2]
[380619981,1755821442854,-400.0,0.00016438,2]
[380619982,1755821442864,-559.74,0.00016438,2]
[380619983,1755821442874,-13.86699847,0.00016438,2]
[380620011,1755821443687,-416.49300153,0.00016438,2]
[380620013,1755821443697,-518.69,0.00016438,2]
[380620015,1755821443707,-512.4,0.00016438,2]
[380620017,1755821443717,-884.56,0.00016438,2]
[380620019,1755821443726,-405.27,0.00016438,2]
[380620021,1755821443736,-568.36,0.00016438,2]
[380620023,1755821443745,-400.0,0.00016438,2]
[380620025,1755821443755,-587.2,0.00016438,2]
[380620027,1755821443764,-404.73,0.00016438,2]
[380620029,1755821443774,-400.0,0.00016438,2]
[380620030,1755821443784,-400.0,0.00016438,2]
[380620031,1755821443793,-528.77,0.00016438,2]
[380620032,1755821443803,-400.0,0.00016438,2]
[380620033,1755821443812,-400.0,0.00016438,2]
[380620034,1755821443822,-837.27,0.00016438,2]
[380620035,1755821443831,-634.99,0.00016438,2]
[380620036,1755821443841,-681.17,0.00016438,2]
[380620037,1755821443850,-400.0,0.00016438,2]
[380620038,1755821443860,-480.57,0.00016438,2]
[380620039,1755821443961,-636.42,0.00016438,2]
[380620040,1755821444014,-442.65161743,0.00016438,2]
[380620041,1755821444024,-400.0,0.00016438,2]
[380620042,1755821444035,-690.67,0.00016438,2]
[380620043,1755821444045,-400.0,0.00016438,2]
[380620044,1755821444055,-556.64,0.00016438,2]
[380620045,1755821444065,-400.0,0.00016438,2]
[380620046,1755821444075,-569.41,0.00016438,2]